[Event "December 19 Early 2023"]
[Site "https://www.chess.com"]
[Date "2023.12.19"]
[Round "6"]
[White "Sailer, Mike"]
[Black "Spichkin, Alexander"]
[Result "1-0"]
[Board "165"]
[TimeControl "180+1"]
[WhiteFideId "2012901"]
[BlackFideId "4144074"]
[WhiteElo "2109"]
[BlackElo "1955"]
[WhiteTeam "USA"]
[BlackTeam "RUS"]
[WhiteClock "0:00:16"]
[BlackClock "0:01:09"]

1. d4 {[%clk 0:02:59]}  e6 {[%clk 0:02:59]} 2. Nc3 {[%clk 0:02:54]}  f5 {[%clk 0:02:59]} 3. e4 {[%clk 0:02:51]}  fxe4 {[%clk 0:02:59]} 4. Nxe4 {[%clk 0:02:52]}  Nf6 {[%clk 0:03:00]} 5. Bg5 {[%clk 0:02:51]}  Be7 {[%clk 0:03:00]} 6. Bxf6 {[%clk 0:02:51]}  Bxf6 {[%clk 0:03:00]} 7. c3 {[%clk 0:02:51]}  O-O {[%clk 0:03:01]} 8. Bd3 {[%clk 0:02:51]}  b6 {[%clk 0:03:01]} 9. f4 {[%clk 0:02:51]}  Bb7 {[%clk 0:03:02]} 10. Nf3 {[%clk 0:02:51]}  Nc6 {[%clk 0:03:02]} 11. O-O {[%clk 0:02:51]}  Ne7 {[%clk 0:03:02]} 12. Neg5 {[%clk 0:02:19]}  Nf5 {[%clk 0:02:56]} 13. Qe1 {[%clk 0:02:07]}  h6 {[%clk 0:02:55]} 14. Ne4 {[%clk 0:02:04]}  Be7 {[%clk 0:02:51]} 15. Ne5 {[%clk 0:01:56]}  Qe8 {[%clk 0:02:46]} 16. g4 {[%clk 0:01:47]}  Nd6 {[%clk 0:02:39]} 17. Ng3 {[%clk 0:01:47]}  Bh4 {[%clk 0:02:37]} 18. Bg6 {[%clk 0:01:37]}  Qd8 {[%clk 0:02:30]} 19. Qe2 {[%clk 0:01:33]}  Bxg3 {[%clk 0:02:27]} 20. hxg3 {[%clk 0:01:33]}  a5 {[%clk 0:02:26]} 21. Bc2 {[%clk 0:01:30]}  Ba6 {[%clk 0:02:22]} 22. c4 {[%clk 0:01:27]}  Qf6 {[%clk 0:02:10]} 23. Qd3 {[%clk 0:01:21]}  g6 {[%clk 0:02:08]} 24. Nxd7 {[%clk 0:01:13]}  Qg7 {[%clk 0:02:02]} 25. Nxf8 {[%clk 0:01:08]}  Bxc4 {[%clk 0:01:59]} 26. Qxg6 {[%clk 0:01:04]}  Bxf1 {[%clk 0:01:56]} 27. Qxg7+ {[%clk 0:00:49]}  Kxg7 {[%clk 0:01:54]} 28. Nxe6+ {[%clk 0:00:50]}  Kf6 {[%clk 0:01:52]} 29. Nxc7 {[%clk 0:00:47]}  Bc4 {[%clk 0:01:47]} 30. Nxa8 {[%clk 0:00:45]}  Nb5 {[%clk 0:01:45]} 31. Nxb6 {[%clk 0:00:42]}  Nxd4 {[%clk 0:01:45]} 32. Nxc4 {[%clk 0:00:42]}  Nxc2 {[%clk 0:01:44]} 33. Rc1 {[%clk 0:00:35]}  Nd4 {[%clk 0:01:42]} 34. Kf2 {[%clk 0:00:33]}  Ke6 {[%clk 0:01:40]} 35. Nxa5 {[%clk 0:00:32]}  Nb5 {[%clk 0:01:38]} 36. Rc6+ {[%clk 0:00:27]}  Kf7 {[%clk 0:01:34]} 37. Rxh6 {[%clk 0:00:26]}  Nd4 {[%clk 0:01:35]} 38. b4 {[%clk 0:00:23]}  Nb5 {[%clk 0:01:33]} 39. Nc4 {[%clk 0:00:22]}  Nc3 {[%clk 0:01:31]} 40. g5 {[%clk 0:00:20]}  Nb5 {[%clk 0:01:27]} 41. a4 {[%clk 0:00:20]}  Nd4 {[%clk 0:01:27]} 42. b5 {[%clk 0:00:18]}  Nb3 {[%clk 0:01:25]} 43. a5 {[%clk 0:00:18]}  Nc5 {[%clk 0:01:25]} 44. b6 {[%clk 0:00:18]}  Kg7 {[%clk 0:01:25]} 45. Rc6 {[%clk 0:00:16]}  Na6 {[%clk 0:01:25]} 46. b7 {[%clk 0:00:16]}  Nb4 {[%clk 0:01:25]} 47. Rc7+ {[%clk 0:00:16]}  Kg6 {[%clk 0:01:25]} 48. b8=Q {[%clk 0:00:15]}  Nd3+ {[%clk 0:01:24]} 49. Kf1 {[%clk 0:00:15]}  Kf5 {[%clk 0:01:22]} 50. Qc8+ {[%clk 0:00:15]}  Ke4 {[%clk 0:01:21]} 51. Qe6+ {[%clk 0:00:15]}  Kf3 {[%clk 0:01:17]} 52. Qe2+ {[%clk 0:00:15]}  Kxg3 {[%clk 0:01:15]} 53. Qxd3+ {[%clk 0:00:15]}  Kxf4 {[%clk 0:01:14]} 54. Nb6 {[%clk 0:00:15]}  Kxg5 {[%clk 0:01:12]} 55. Rc5+ {[%clk 0:00:15]}  Kf4 {[%clk 0:01:13]} 56. Rc4+ {[%clk 0:00:16]}  Ke5 {[%clk 0:01:09]} 57. Qd5+ {[%clk 0:00:16]} 1-0

[Event "December 19 Early 2023"]
[Site "https://www.chess.com"]
[Date "2023.12.19"]
[Round "6"]
[White "Bowden, Karl"]
[Black "Brandao, Marcius Gomes"]
[Result "1-0"]
[Board "166"]
[TimeControl "180+1"]
[WhiteFideId "400548"]
[BlackFideId "2124980"]
[WhiteElo "2429"]
[BlackElo "2100"]
[WhiteTeam "ENG"]
[BlackTeam "BRA"]
[WhiteClock "0:00:22"]
[BlackClock "0:00:00"]

1. e4 {[%clk 0:02:55]}  c5 {[%clk 0:02:59]} 2. c3 {[%clk 0:02:55]}  Nf6 {[%clk 0:02:58]} 3. e5 {[%clk 0:02:55]}  Nd5 {[%clk 0:02:58]} 4. d4 {[%clk 0:02:56]}  cxd4 {[%clk 0:02:58]} 5. cxd4 {[%clk 0:02:56]}  d6 {[%clk 0:02:58]} 6. Nf3 {[%clk 0:02:56]}  Nc6 {[%clk 0:02:57]} 7. Bc4 {[%clk 0:02:52]}  Nb6 {[%clk 0:02:57]} 8. Bb5 {[%clk 0:02:48]}  dxe5 {[%clk 0:02:56]} 9. Nxe5 {[%clk 0:02:47]}  Bd7 {[%clk 0:02:56]} 10. Nc3 {[%clk 0:02:40]}  e6 {[%clk 0:02:33]} 11. O-O {[%clk 0:02:12]}  Nxe5 {[%clk 0:02:24]} 12. dxe5 {[%clk 0:02:10]}  Bxb5 {[%clk 0:02:22]} 13. Nxb5 {[%clk 0:02:10]}  a6 {[%clk 0:02:13]} 14. Nd4 {[%clk 0:01:45]}  Bc5 {[%clk 0:02:03]} 15. Be3 {[%clk 0:01:40]}  O-O {[%clk 0:01:56]} 16. Nxe6 {[%clk 0:01:23]}  Qxd1 {[%clk 0:01:51]} 17. Rfxd1 {[%clk 0:01:23]}  Bxe3 {[%clk 0:01:45]} 18. Nxf8 {[%clk 0:01:22]}  Bxf2+ {[%clk 0:01:00]} 19. Kxf2 {[%clk 0:01:19]}  Kxf8 {[%clk 0:01:01]} 20. Rac1 {[%clk 0:01:14]}  Ke8 {[%clk 0:00:39]} 21. Rc7 {[%clk 0:01:11]}  Rb8 {[%clk 0:00:37]} 22. b3 {[%clk 0:01:08]}  Na8 {[%clk 0:00:34]} 23. Rc5 {[%clk 0:00:56]}  Rd8 {[%clk 0:00:28]} 24. Rxd8+ {[%clk 0:00:50]}  Kxd8 {[%clk 0:00:28]} 25. Ke3 {[%clk 0:00:50]}  Nc7 {[%clk 0:00:26]} 26. Ke4 {[%clk 0:00:49]}  Ne6 {[%clk 0:00:25]} 27. Rc1 {[%clk 0:00:46]}  Ke7 {[%clk 0:00:23]} 28. g3 {[%clk 0:00:46]}  Kd7 {[%clk 0:00:22]} 29. Kd5 {[%clk 0:00:39]}  Nc7+ {[%clk 0:00:20]} 30. Rxc7+ {[%clk 0:00:38]}  Kxc7 {[%clk 0:00:19]} 31. e6 {[%clk 0:00:39]}  f6 {[%clk 0:00:14]} 32. a4 {[%clk 0:00:32]}  g6 {[%clk 0:00:13]} 33. g4 {[%clk 0:00:28]}  b6 {[%clk 0:00:13]} 34. b4 {[%clk 0:00:25]}  a5 {[%clk 0:00:10]} 35. bxa5 {[%clk 0:00:24]}  bxa5 {[%clk 0:00:10]} 36. Kc5 {[%clk 0:00:24]}  f5 {[%clk 0:00:07]} 37. gxf5 {[%clk 0:00:24]}  gxf5 {[%clk 0:00:07]} 38. Kd5 {[%clk 0:00:25]}  f4 {[%clk 0:00:03]} 39. Ke4 {[%clk 0:00:22]}  Kd6 {[%clk 0:00:04]} 40. Kxf4 {[%clk 0:00:21]}  Kxe6 {[%clk 0:00:04]} 41. Kg5 {[%clk 0:00:21]}  Kf7 {[%clk 0:00:00]} 42. Kf5 {[%clk 0:00:22]} 1-0

[Event "December 19 Early 2023"]
[Site "https://www.chess.com"]
[Date "2023.12.19"]
[Round "6"]
[White "Mizzi, Jack"]
[Black "Yushko, Olga"]
[Result "0-1"]
[Board "167"]
[TimeControl "180+1"]
[WhiteFideId "5602521"]
[BlackFideId "14114500"]
[WhiteElo "2127"]
[BlackElo "1891"]
[WhiteTeam "MLT"]
[BlackTeam "UKR"]
[WhiteClock "0:00:15"]
[BlackClock "0:01:35"]

1. d4 {[%clk 0:03:00]}  e6 {[%clk 0:02:59]} 2. c4 {[%clk 0:02:48]}  f5 {[%clk 0:02:59]} 3. Nf3 {[%clk 0:02:46]}  Nf6 {[%clk 0:03:00]} 4. g3 {[%clk 0:02:47]}  Be7 {[%clk 0:03:00]} 5. Bg2 {[%clk 0:02:47]}  O-O {[%clk 0:03:01]} 6. O-O {[%clk 0:02:48]}  d6 {[%clk 0:03:01]} 7. Nc3 {[%clk 0:02:48]}  Qe8 {[%clk 0:03:01]} 8. Ne1 {[%clk 0:02:38]}  Qg6 {[%clk 0:03:00]} 9. Nd3 {[%clk 0:02:37]}  Nc6 {[%clk 0:02:58]} 10. Nf4 {[%clk 0:02:27]}  Qf7 {[%clk 0:02:53]} 11. d5 {[%clk 0:02:28]}  Nd8 {[%clk 0:02:41]} 12. Nb5 {[%clk 0:02:21]}  e5 {[%clk 0:02:38]} 13. Nh3 {[%clk 0:02:05]}  Ne8 {[%clk 0:02:36]} 14. f4 {[%clk 0:01:55]}  a6 {[%clk 0:02:34]} 15. Nc3 {[%clk 0:01:55]}  e4 {[%clk 0:02:34]} 16. Be3 {[%clk 0:01:52]}  h6 {[%clk 0:02:33]} 17. Nf2 {[%clk 0:01:46]}  Nf6 {[%clk 0:02:30]} 18. b4 {[%clk 0:01:43]}  Qh5 {[%clk 0:02:26]} 19. Bd4 {[%clk 0:01:30]}  g5 {[%clk 0:02:23]} 20. e3 {[%clk 0:01:26]}  Qg6 {[%clk 0:02:17]} 21. Nh3 {[%clk 0:01:19]}  Nf7 {[%clk 0:02:15]} 22. Rc1 {[%clk 0:01:10]}  g4 {[%clk 0:02:14]} 23. Nf2 {[%clk 0:01:09]}  h5 {[%clk 0:02:15]} 24. Ne2 {[%clk 0:01:06]}  h4 {[%clk 0:02:15]} 25. Ba1 {[%clk 0:00:53]}  Nh5 {[%clk 0:02:12]} 26. Qd4 {[%clk 0:00:44]}  Bf6 {[%clk 0:02:12]} 27. Qd2 {[%clk 0:00:41]}  Be7 {[%clk 0:02:09]} 28. c5 {[%clk 0:00:39]}  Bd7 {[%clk 0:01:56]} 29. Nd4 {[%clk 0:00:36]}  hxg3 {[%clk 0:01:53]} 30. hxg3 {[%clk 0:00:18]}  Nxg3 {[%clk 0:01:54]} 31. Ne6 {[%clk 0:00:18]}  Bxe6 {[%clk 0:01:41]} 32. dxe6 {[%clk 0:00:18]}  Qxe6 {[%clk 0:01:40]} 33. Qc3 {[%clk 0:00:15]}  Ne2+ {[%clk 0:01:35]} 0-1

[Event "December 19 Early 2023"]
[Site "https://www.chess.com"]
[Date "2023.12.19"]
[Round "6"]
[White "Azali, Tannaz"]
[Black "UnTucopalaTimba"]
[Result "1/2-1/2"]
[Board "170"]
[TimeControl "180+1"]
[WhiteFideId "12537721"]
[WhiteElo "1828"]
[BlackElo "1977"]
[WhiteTeam "IRI"]
[WhiteClock "0:00:07"]
[BlackClock "0:00:14"]

1. d4 {[%clk 0:03:00]}  Nf6 {[%clk 0:02:52]} 2. c4 {[%clk 0:03:01]}  e6 {[%clk 0:02:52]} 3. Nc3 {[%clk 0:02:59]}  Bb4 {[%clk 0:02:52]} 4. f3 {[%clk 0:02:59]}  O-O {[%clk 0:02:49]} 5. a3 {[%clk 0:02:58]}  Bxc3+ {[%clk 0:02:48]} 6. bxc3 {[%clk 0:02:59]}  b6 {[%clk 0:02:47]} 7. e4 {[%clk 0:02:58]}  d6 {[%clk 0:02:47]} 8. Bd3 {[%clk 0:02:59]}  c5 {[%clk 0:02:45]} 9. Ne2 {[%clk 0:02:57]}  Nc6 {[%clk 0:02:41]} 10. O-O {[%clk 0:02:57]}  Ba6 {[%clk 0:02:37]} 11. f4 {[%clk 0:02:44]}  Nd7 {[%clk 0:02:34]} 12. f5 {[%clk 0:02:29]}  Na5 {[%clk 0:02:20]} 13. fxe6 {[%clk 0:02:25]}  fxe6 {[%clk 0:02:20]} 14. Rxf8+ {[%clk 0:02:21]}  Qxf8 {[%clk 0:02:20]} 15. Nf4 {[%clk 0:02:22]}  Qe7 {[%clk 0:02:11]} 16. Qe2 {[%clk 0:02:16]}  Rf8 {[%clk 0:02:09]} 17. Be3 {[%clk 0:02:12]}  cxd4 {[%clk 0:01:58]} 18. cxd4 {[%clk 0:02:12]}  e5 {[%clk 0:01:58]} 19. Nd5 {[%clk 0:02:09]}  Qd8 {[%clk 0:01:50]} 20. Rc1 {[%clk 0:02:01]}  exd4 {[%clk 0:01:42]} 21. Bxd4 {[%clk 0:01:52]}  Nb3 {[%clk 0:01:42]} 22. Qb2 {[%clk 0:01:52]}  Nxd4 {[%clk 0:01:40]} 23. Qxd4 {[%clk 0:01:50]}  Ne5 {[%clk 0:01:39]} 24. Bf1 {[%clk 0:01:48]}  Qg5 {[%clk 0:01:33]} 25. Qd1 {[%clk 0:01:32]}  Bc8 {[%clk 0:01:12]} 26. Rc3 {[%clk 0:01:31]}  Bg4 {[%clk 0:01:10]} 27. Be2 {[%clk 0:01:02]}  Bxe2 {[%clk 0:01:00]} 28. Qxe2 {[%clk 0:01:03]}  Kh8 {[%clk 0:00:44]} 29. h3 {[%clk 0:00:55]}  Qh4 {[%clk 0:00:42]} 30. a4 {[%clk 0:00:36]}  Rc8 {[%clk 0:00:36]} 31. a5 {[%clk 0:00:35]}  bxa5 {[%clk 0:00:34]} 32. Rc1 {[%clk 0:00:15]}  Qg5 {[%clk 0:00:31]} 33. Qc2 {[%clk 0:00:13]}  Qg3 {[%clk 0:00:28]} 34. Qf2 {[%clk 0:00:12]}  Qxf2+ {[%clk 0:00:28]} 35. Kxf2 {[%clk 0:00:13]}  Rxc4 {[%clk 0:00:28]} 36. Ra1 {[%clk 0:00:11]}  Rxe4 {[%clk 0:00:27]} 37. Rxa5 {[%clk 0:00:12]}  h6 {[%clk 0:00:26]} 38. Rxa7 {[%clk 0:00:12]}  Rd4 {[%clk 0:00:25]} 39. Ne3 {[%clk 0:00:12]}  Rd2+ {[%clk 0:00:24]} 40. Kg3 {[%clk 0:00:12]}  d5 {[%clk 0:00:24]} 41. Ra8+ {[%clk 0:00:11]}  Kh7 {[%clk 0:00:23]} 42. Rd8 {[%clk 0:00:11]}  Rd3 {[%clk 0:00:21]} 43. Kf2 {[%clk 0:00:10]}  Kg6 {[%clk 0:00:20]} 44. Rxd5 {[%clk 0:00:09]}  Rxd5 {[%clk 0:00:20]} 45. Nxd5 {[%clk 0:00:10]}  Kf5 {[%clk 0:00:20]} 46. Kg3 {[%clk 0:00:09]}  g5 {[%clk 0:00:19]} 47. Ne3+ {[%clk 0:00:08]}  Kf6 {[%clk 0:00:19]} 48. Ng4+ {[%clk 0:00:08]}  Nxg4 {[%clk 0:00:19]} 49. Kxg4 {[%clk 0:00:08]}  Kg6 {[%clk 0:00:19]} 50. Kg3 {[%clk 0:00:08]}  Kf5 {[%clk 0:00:18]} 51. Kf3 {[%clk 0:00:08]}  h5 {[%clk 0:00:17]} 52. g3 {[%clk 0:00:08]}  Ke5 {[%clk 0:00:15]} 53. Ke3 {[%clk 0:00:08]}  Kf5 {[%clk 0:00:15]} 54. Kf3 {[%clk 0:00:08]}  Ke5 {[%clk 0:00:14]} 55. Ke3 {[%clk 0:00:08]}  Kf5 {[%clk 0:00:14]} 56. Kf3 {[%clk 0:00:07]} 1/2-1/2

[Event "December 19 Early 2023"]
[Site "https://www.chess.com"]
[Date "2023.12.19"]
[Round "6"]
[White "Deveci, Huseyin Said"]
[Black "Gurevich, Dmitry"]
[Result "1-0"]
[Board "173"]
[TimeControl "180+1"]
[WhiteFideId "26322455"]
[BlackFideId "2000407"]
[WhiteElo "1954"]
[BlackElo "2506"]
[WhiteTeam "TUR"]
[BlackTeam "USA"]
[WhiteClock "0:00:15"]
[BlackClock "0:00:00"]

1. e4 {[%clk 0:02:57]}  c5 {[%clk 0:02:58]} 2. Nf3 {[%clk 0:02:56]}  d6 {[%clk 0:02:58]} 3. d4 {[%clk 0:02:55]}  cxd4 {[%clk 0:02:58]} 4. Nxd4 {[%clk 0:02:56]}  Nf6 {[%clk 0:02:57]} 5. Nc3 {[%clk 0:02:56]}  Nc6 {[%clk 0:02:57]} 6. Bb5 {[%clk 0:02:56]}  Bd7 {[%clk 0:02:55]} 7. O-O {[%clk 0:02:51]}  g6 {[%clk 0:02:55]} 8. Be3 {[%clk 0:02:49]}  Bg7 {[%clk 0:02:51]} 9. f3 {[%clk 0:02:49]}  O-O {[%clk 0:02:49]} 10. Bc4 {[%clk 0:02:49]}  Rc8 {[%clk 0:02:47]} 11. Bb3 {[%clk 0:02:48]}  Na5 {[%clk 0:02:46]} 12. Qd2 {[%clk 0:02:45]}  Nc4 {[%clk 0:02:43]} 13. Bxc4 {[%clk 0:02:44]}  Rxc4 {[%clk 0:02:42]} 14. Rad1 {[%clk 0:02:43]}  a6 {[%clk 0:02:38]} 15. Nde2 {[%clk 0:02:32]}  b5 {[%clk 0:02:27]} 16. a3 {[%clk 0:02:13]}  Rc8 {[%clk 0:02:20]} 17. Nf4 {[%clk 0:01:59]}  Re8 {[%clk 0:02:10]} 18. Nfd5 {[%clk 0:01:54]}  Rb8 {[%clk 0:02:00]} 19. Nxf6+ {[%clk 0:01:49]}  Bxf6 {[%clk 0:01:59]} 20. Bd4 {[%clk 0:01:49]}  Bxd4+ {[%clk 0:01:54]} 21. Qxd4 {[%clk 0:01:50]}  Qb6 {[%clk 0:01:51]} 22. Qxb6 {[%clk 0:01:50]}  Rxb6 {[%clk 0:01:50]} 23. Nd5 {[%clk 0:01:50]}  Rb7 {[%clk 0:01:40]} 24. Rd3 {[%clk 0:01:47]}  Be6 {[%clk 0:01:37]} 25. Ne3 {[%clk 0:01:43]}  Rc8 {[%clk 0:01:34]} 26. Rfd1 {[%clk 0:01:39]}  a5 {[%clk 0:01:30]} 27. f4 {[%clk 0:01:30]}  b4 {[%clk 0:01:23]} 28. f5 {[%clk 0:01:29]}  Bc4 {[%clk 0:01:02]} 29. Rd4 {[%clk 0:01:23]}  Ba6 {[%clk 0:01:01]} 30. axb4 {[%clk 0:01:21]}  Rxb4 {[%clk 0:00:54]} 31. Rxb4 {[%clk 0:01:21]}  axb4 {[%clk 0:00:52]} 32. Rd4 {[%clk 0:01:18]}  b3 {[%clk 0:00:44]} 33. cxb3 {[%clk 0:01:16]}  Bb7 {[%clk 0:00:37]} 34. f6 {[%clk 0:01:06]}  exf6 {[%clk 0:00:35]} 35. Rxd6 {[%clk 0:01:04]}  Kg7 {[%clk 0:00:34]} 36. Nd5 {[%clk 0:01:00]}  Rc1+ {[%clk 0:00:27]} 37. Kf2 {[%clk 0:00:59]}  Rc2+ {[%clk 0:00:26]} 38. Kg3 {[%clk 0:00:51]}  Bxd5 {[%clk 0:00:20]} 39. exd5 {[%clk 0:00:49]}  Rxb2 {[%clk 0:00:19]} 40. Rb6 {[%clk 0:00:49]}  Rd2 {[%clk 0:00:18]} 41. d6 {[%clk 0:00:49]}  f5 {[%clk 0:00:17]} 42. b4 {[%clk 0:00:48]}  g5 {[%clk 0:00:14]} 43. b5 {[%clk 0:00:22]}  Rd3+ {[%clk 0:00:13]} 44. Kf2 {[%clk 0:00:21]}  f4 {[%clk 0:00:12]} 45. Rc6 {[%clk 0:00:22]}  Kf6 {[%clk 0:00:08]} 46. b6 {[%clk 0:00:21]}  Rb3 {[%clk 0:00:07]} 47. d7+ {[%clk 0:00:14]}  Ke7 {[%clk 0:00:05]} 48. Rd6 {[%clk 0:00:15]}  Kd8 {[%clk 0:00:04]} 49. g3 {[%clk 0:00:14]}  fxg3+ {[%clk 0:00:02]} 50. hxg3 {[%clk 0:00:15]}  f5 {[%clk 0:00:00]} 51. Kg2 {[%clk 0:00:15]} 1-0

[Event "December 19 Early 2023"]
[Site "https://www.chess.com"]
[Date "2023.12.19"]
[Round "6"]
[White "Can, Melih Kaan"]
[Black "Clawitter, Craig"]
[Result "0-1"]
[Board "175"]
[TimeControl "180+1"]
[WhiteFideId "6317383"]
[BlackFideId "2023105"]
[WhiteElo "2022"]
[BlackElo "2251"]
[WhiteTeam "TUR"]
[BlackTeam "USA"]
[WhiteClock "0:01:28"]
[BlackClock "0:01:06"]

1. e4 {[%clk 0:02:55]}  e6 {[%clk 0:03:00]} 2. d4 {[%clk 0:02:55]}  d5 {[%clk 0:03:00]} 3. Nd2 {[%clk 0:02:56]}  Be7 {[%clk 0:03:00]} 4. Bd3 {[%clk 0:02:55]}  c5 {[%clk 0:02:59]} 5. exd5 {[%clk 0:02:53]}  Qxd5 {[%clk 0:02:59]} 6. Ngf3 {[%clk 0:02:52]}  cxd4 {[%clk 0:02:55]} 7. O-O {[%clk 0:02:52]}  Nf6 {[%clk 0:02:56]} 8. Bc4 {[%clk 0:02:51]}  Qd7 {[%clk 0:02:49]} 9. Nb3 {[%clk 0:02:48]}  Nc6 {[%clk 0:02:48]} 10. Nbxd4 {[%clk 0:02:46]}  Nxd4 {[%clk 0:02:48]} 11. Nxd4 {[%clk 0:02:47]}  a6 {[%clk 0:02:42]} 12. Be3 {[%clk 0:02:43]}  O-O {[%clk 0:02:37]} 13. Qf3 {[%clk 0:02:37]}  b5 {[%clk 0:02:10]} 14. Qxa8 {[%clk 0:02:29]}  Bb7 {[%clk 0:02:09]} 15. Qa7 {[%clk 0:02:24]}  bxc4 {[%clk 0:02:07]} 16. Rad1 {[%clk 0:02:20]}  Rd8 {[%clk 0:01:42]} 17. f3 {[%clk 0:01:43]}  Nd5 {[%clk 0:01:13]} 18. Bf2 {[%clk 0:01:39]}  Ra8 {[%clk 0:01:13]} 19. Qb6 {[%clk 0:01:38]}  Nxb6 {[%clk 0:01:12]} 20. Nf5 {[%clk 0:01:28]}  Nd5 {[%clk 0:01:06]} 0-1

[Event "December 19 Early 2023"]
[Site "https://www.chess.com"]
[Date "2023.12.19"]
[Round "6"]
[White "Tarasova, Viktoriya"]
[Black "Quilter, Thomas A"]
[Result "1-0"]
[Board "179"]
[TimeControl "180+1"]
[WhiteFideId "4175840"]
[BlackFideId "408530"]
[WhiteElo "2182"]
[BlackElo "1962"]
[WhiteTeam "RUS"]
[BlackTeam "ENG"]
[WhiteClock "0:00:23"]
[BlackClock "0:00:00"]

1. d4 {[%clk 0:03:00]}  d5 {[%clk 0:02:55]} 2. c4 {[%clk 0:03:00]}  e6 {[%clk 0:02:41]} 3. Nc3 {[%clk 0:02:59]}  c5 {[%clk 0:02:41]} 4. Nf3 {[%clk 0:02:57]}  cxd4 {[%clk 0:02:35]} 5. Nxd4 {[%clk 0:02:55]}  e5 {[%clk 0:02:35]} 6. Nf3 {[%clk 0:02:51]}  d4 {[%clk 0:02:31]} 7. Nb1 {[%clk 0:02:51]}  Nc6 {[%clk 0:02:29]} 8. Nbd2 {[%clk 0:02:47]}  f5 {[%clk 0:01:56]} 9. e3 {[%clk 0:01:56]}  dxe3 {[%clk 0:01:55]} 10. fxe3 {[%clk 0:01:55]}  Bc5 {[%clk 0:01:55]} 11. Nb3 {[%clk 0:01:53]}  Qxd1+ {[%clk 0:01:32]} 12. Kxd1 {[%clk 0:01:52]}  Bb6 {[%clk 0:01:22]} 13. c5 {[%clk 0:01:37]}  Bc7 {[%clk 0:01:21]} 14. Bb5 {[%clk 0:01:36]}  Nf6 {[%clk 0:01:18]} 15. Ke2 {[%clk 0:01:35]}  O-O {[%clk 0:01:15]} 16. Rd1 {[%clk 0:01:32]}  e4 {[%clk 0:01:10]} 17. Nfd4 {[%clk 0:01:31]}  Nxd4+ {[%clk 0:01:06]} 18. Nxd4 {[%clk 0:01:31]}  Bxh2 {[%clk 0:01:05]} 19. c6 {[%clk 0:01:28]}  bxc6 {[%clk 0:01:03]} 20. Nxc6 {[%clk 0:01:28]}  Rb8 {[%clk 0:01:01]} 21. Nxb8 {[%clk 0:01:26]}  Bxb8 {[%clk 0:00:57]} 22. Bc4+ {[%clk 0:01:26]}  Kh8 {[%clk 0:00:57]} 23. Bd2 {[%clk 0:01:26]}  f4 {[%clk 0:00:54]} 24. Rf1 {[%clk 0:01:11]}  Bg4+ {[%clk 0:00:42]} 25. Ke1 {[%clk 0:01:11]}  f3 {[%clk 0:00:42]} 26. gxf3 {[%clk 0:01:08]}  Bg3+ {[%clk 0:00:35]} 27. Kd1 {[%clk 0:01:06]}  Bxf3+ {[%clk 0:00:30]} 28. Kc2 {[%clk 0:01:06]}  h5 {[%clk 0:00:24]} 29. Be1 {[%clk 0:01:04]}  Bxe1 {[%clk 0:00:21]} 30. Raxe1 {[%clk 0:00:56]}  h4 {[%clk 0:00:21]} 31. Rf2 {[%clk 0:00:56]}  Ng4 {[%clk 0:00:20]} 32. Rd2 {[%clk 0:00:54]}  g5 {[%clk 0:00:19]} 33. Rd5 {[%clk 0:00:44]}  Rg8 {[%clk 0:00:09]} 34. Bf1 {[%clk 0:00:30]}  Rc8+ {[%clk 0:00:06]} 35. Kb3 {[%clk 0:00:28]}  Rb8+ {[%clk 0:00:05]} 36. Ka3 {[%clk 0:00:25]}  Nf6 {[%clk 0:00:03]} 37. Rxg5 {[%clk 0:00:25]}  Kh7 {[%clk 0:00:03]} 38. Bh3 {[%clk 0:00:23]}  Kh6 {[%clk 0:00:00]} 39. Reg1 {[%clk 0:00:23]} 1-0

[Event "December 19 Early 2023"]
[Site "https://www.chess.com"]
[Date "2023.12.19"]
[Round "6"]
[White "Kuhn, Clement"]
[Black "Cramling Bellon, Anna"]
[Result "1-0"]
[Board "181"]
[TimeControl "180+1"]
[WhiteFideId "36099775"]
[BlackFideId "32009232"]
[WhiteElo "2251"]
[BlackElo "1976"]
[WhiteTeam "FRA"]
[BlackTeam "SWE"]
[WhiteClock "0:00:54"]
[BlackClock "0:00:00"]

1. e4 {[%clk 0:03:00]}  c5 {[%clk 0:02:57]} 2. Nc3 {[%clk 0:03:00]}  Nc6 {[%clk 0:02:56]} 3. Bb5 {[%clk 0:02:59]}  a6 {[%clk 0:02:54]} 4. Bxc6 {[%clk 0:02:59]}  dxc6 {[%clk 0:02:50]} 5. f4 {[%clk 0:02:57]}  g6 {[%clk 0:02:50]} 6. Nf3 {[%clk 0:02:56]}  Bg7 {[%clk 0:02:51]} 7. O-O {[%clk 0:02:57]}  e6 {[%clk 0:02:46]} 8. d3 {[%clk 0:02:57]}  Ne7 {[%clk 0:02:47]} 9. Be3 {[%clk 0:02:56]}  b6 {[%clk 0:02:48]} 10. a4 {[%clk 0:02:55]}  a5 {[%clk 0:02:46]} 11. Qe2 {[%clk 0:02:51]}  O-O {[%clk 0:02:45]} 12. Nd2 {[%clk 0:02:39]}  Bd4 {[%clk 0:02:41]} 13. Nc4 {[%clk 0:02:37]}  Ba6 {[%clk 0:02:26]} 14. Ne5 {[%clk 0:02:23]}  Bxe3+ {[%clk 0:02:03]} 15. Qxe3 {[%clk 0:02:24]}  f6 {[%clk 0:01:53]} 16. Nf3 {[%clk 0:02:19]}  Qc7 {[%clk 0:01:40]} 17. b3 {[%clk 0:02:17]}  Rad8 {[%clk 0:01:18]} 18. Rae1 {[%clk 0:02:17]}  Qd6 {[%clk 0:00:43]} 19. e5 {[%clk 0:02:11]}  fxe5 {[%clk 0:00:43]} 20. fxe5 {[%clk 0:02:12]}  Qd7 {[%clk 0:00:41]} 21. Ne4 {[%clk 0:02:09]}  Nd5 {[%clk 0:00:37]} 22. Qg5 {[%clk 0:01:45]}  Rf5 {[%clk 0:00:32]} 23. Qg3 {[%clk 0:01:39]}  Qg7 {[%clk 0:00:20]} 24. Nd6 {[%clk 0:01:31]}  Rff8 {[%clk 0:00:15]} 25. Ng5 {[%clk 0:01:30]}  Qe7 {[%clk 0:00:09]} 26. Ndf7 {[%clk 0:01:16]}  Rde8 {[%clk 0:00:06]} 27. Qh4 {[%clk 0:01:15]}  h5 {[%clk 0:00:05]} 28. Qe4 {[%clk 0:01:01]}  Kg7 {[%clk 0:00:04]} 29. c4 {[%clk 0:00:55]}  Nc7 {[%clk 0:00:04]} 30. Rf6 {[%clk 0:00:55]}  Rxf7 {[%clk 0:00:03]} 31. Qxg6+ {[%clk 0:00:54]}  Kf8 {[%clk 0:00:00]} 32. Rxf7+ {[%clk 0:00:54]} 1-0